bitfinex/quotes_ETHUSD_20251221
["timestamp","ask_amount","ask_price","bid_price","bid_amount"]
[1766311052253,0.002,3010.7,3009.8,3.1284]
[1766311052936,0.002,3010.7,3009.8,2.7544]
[1766311053132,0.002,3010.7,3009.9,3.1284]
[1766311053337,0.70936016,3010.7,3009.7,0.433]
[1766311053947,0.70936016,3010.7,3009.6,3.5624]
[1766311056054,4.03085658,3010.7,3009.6,3.5624]
[1766311056260,4.03085658,3010.7,3009.7,3.0456]
[1766311060866,0.70936016,3010.7,3009.7,3.0456]
[1766311061076,0.40307758,3010.6,3009.7,3.0456]
[1766311061266,0.429,3010.5,3009.8,0.3708]
[1766311061441,0.429,3010.5,3009.8,3.0456]
[1766311064037,0.429,3010.5,3009.9,0.3708]
[1766311064434,6.64363538,3010.4,3008.8,3.0466]
[1766311064637,0.71727421,3010.3,3008.8,3.0466]
[1766311065647,0.71727421,3010.3,3009.5,0.001]
[1766311066680,6.6440768,3010.2,3009.5,0.001]
[1766311066863,0.429,3010.1,3009.5,0.001]
[1766311068666,3.32225913,3010.0,3009.5,0.001]
[1766311068972,0.37512591,3009.9,3009.5,0.001]
[1766311069347,0.37512591,3009.9,3008.9,3.0456]
[1766311069986,0.37512591,3009.9,3008.8,0.001]
[1766311070166,0.38513658,3009.9,3008.8,0.001]
[1766311070795,3.32247989,3009.8,3008.8,0.001]
[1766311070948,3.70760132,3009.9,3009.0,0.3708]
[1766311070949,3.69751981,3009.9,3009.0,0.3708]
[1766311071148,0.79875198,3009.8,3008.8,0.001]
[1766311071384,0.79875198,3009.8,3008.8,3.0466]
[1766311072363,0.79875198,3009.8,3009.0,0.001]
[1766311074384,3.32259029,3009.7,3009.0,0.001]
[1766311075160,6.64518058,3009.7,3009.0,0.001]
[1766311075486,0.74439326,3009.6,3009.0,0.001]
[1766311076569,3.32281109,3009.5,3009.0,0.001]
[1766311076770,0.43,3009.4,3009.0,0.001]
[1766311077464,0.43,3009.4,3008.8,0.001]
[1766311077667,0.01001067,3009.3,3008.5,0.001]
[1766311078683,3.32314236,3009.2,3008.4,0.001]
[1766311078860,3.32314236,3009.2,3007.9,0.001]
[1766311078861,0.01001067,3008.8,3007.9,3.0466]
[1766311079066,0.43,3008.7,3008.2,3.0456]
[1766311079266,0.43,3008.7,3008.0,3.0456]
[1766311080279,0.43,3008.7,3007.9,0.001]
[1766311080651,0.01001067,3008.8,3007.9,0.001]
[1766311080856,0.43,3008.7,3008.3,0.3708]
[1766311081154,0.01001067,3009.0,3008.3,3.0456]
[1766311081352,0.43,3008.9,3008.3,3.0456]
[1766311081567,0.43,3008.9,3008.2,3.0456]
[1766311083192,0.01001067,3009.0,3008.2,3.0456]
[1766311083363,0.43,3009.0,3008.5,3.0456]
[1766311083694,0.43,3009.0,3008.6,3.0456]
[1766311083991,4.07717677,3009.6,3008.8,3.0456]
[1766311084172,0.40771768,3009.5,3008.8,3.0456]
[1766311084494,0.01001067,3008.9,3007.9,0.001]
[1766311084692,0.01001067,3008.4,3007.9,0.001]
[1766311084910,0.01001067,3008.2,3007.9,0.001]
[1766311086865,0.01001067,3008.2,3007.5,0.001]
[1766311087071,0.01001067,3008.2,3007.3,0.001]
[1766311087072,0.01001067,3008.0,3007.3,0.001]
[1766311089367,0.01001067,3007.8,3007.3,0.001]
[1766311089703,0.429,3007.9,3007.5,0.3456]
[1766311089866,0.429,3007.9,3007.6,0.3456]
[1766311090359,0.429,3007.9,3007.5,2.7408]
[1766311090699,0.429,3007.9,3007.3,0.001]
[1766311090700,0.01001067,3007.8,3007.3,0.001]
[1766311091060,0.429,3007.9,3007.3,0.001]
[1766311091490,0.01001067,3007.6,3007.1,0.001]
[1766311092089,0.01001067,3007.4,3007.1,0.001]
[1766311092291,0.01001067,3007.6,3007.1,0.001]
[1766311093158,0.01001067,3007.8,3007.1,3.39624]
[1766311093356,0.429,3007.7,3007.1,3.39624]
[1766311093559,0.01001067,3008.2,3007.3,0.3456]
[1766311093789,0.01001067,3008.2,3007.3,2.7408]
[1766311093790,0.01001067,3008.0,3007.3,2.7408]
[1766311093981,0.43901067,3008.0,3007.6,3.0864]
[1766311094573,0.43901067,3008.0,3007.3,0.3456]
[1766311094768,0.43901067,3008.0,3007.1,0.001]
[1766311094769,0.43901067,3008.0,3007.4,3.0864]
[1766311095482,0.01001067,3008.0,3007.5,0.3456]
[1766311095682,0.01001067,3008.0,3007.4,2.7408]
[1766311095683,0.01001067,3007.8,3006.0,3.0864]
[1766311095886,0.429,3007.7,3006.5,3.0874]
[1766311096687,3.32491022,3007.6,3006.5,3.0874]
[1766311096881,6.64982044,3007.6,3006.5,0.001]
[1766311097704,3.32491022,3007.6,3006.5,0.001]
[1766311098000,0.01001067,3007.0,3005.1,0.99941201]
[1766311098165,0.01001067,3006.8,3005.6,0.3456]
[1766311098365,0.01001067,3006.8,3005.6,3.0864]
[1766311098565,0.01001067,3006.8,3005.6,0.30864]
[1766311098798,0.01001067,3006.8,3005.3,3.0864]
[1766311098799,0.01001067,3006.6,3005.3,2.7408]
[1766311099004,0.01001067,3006.4,3005.3,2.7408]
[1766311099294,0.429,3006.3,3005.2,0.3456]
[1766311099700,0.03327027,3006.2,3005.1,2.7408]
[1766311100199,0.37886852,3006.1,3004.6,3.0874]
[1766311100399,0.03327027,3006.0,3004.6,3.0874]
[1766311100695,0.03327027,3006.0,3004.0,6.41519218]
[1766311100696,0.01001067,3005.8,3004.0,6.41519218]
[1766311100895,0.429,3005.7,3004.0,6.41519218]
[1766311101098,0.429,3005.7,3003.3,3.32963849]
[1766311101099,0.03327027,3005.6,3003.3,0.37886852]
[1766311101299,0.03327027,3005.6,3003.6,2.7408]
[1766311101468,0.429,3005.5,3003.9,0.001]
[1766311102005,0.37886852,3006.1,3004.6,2.7408]
[1766311102200,0.01001067,3006.6,3005.1,3.0864]
[1766311102201,7.848035,3006.5,3005.1,3.0864]
[1766311102407,4.81815,3006.2,3005.1,3.0864]
[1766311102717,0.46227027,3006.3,3004.5,3.32831546]
[1766311102918,0.46227027,3006.3,3005.0,2.7408]
[1766311103074,0.429,3006.4,3005.4,3.0864]
[1766311103406,0.429,3006.4,3005.5,3.0864]
[1766311103647,3.32559347,3007.0,3005.5,3.0864]
[1766311103911,0.99968176,3006.9,3005.6,2.7408]
[1766311104075,3.32537525,3007.2,3005.7,0.3456]
[1766311104076,0.429,3006.8,3005.7,0.3456]
[1766311104275,3.32536757,3007.2,3005.8,0.3456]
[1766311104494,3.32536757,3007.2,3005.7,0.30864]
[1766311104495,0.99963846,3007.0,3005.7,3.32695964]
[1766311104698,0.01001067,3006.8,3005.2,2.7786]
[1766311104900,0.03327027,3006.7,3005.3,0.3622]
[1766311105079,0.03327027,3006.7,3005.3,3.1408]
[1766311105287,0.03327027,3006.7,3005.4,0.31408]
[1766311105575,0.03327027,3006.7,3005.0,3.1408]
[1766311105792,0.03327027,3006.7,3005.0,6.46856644]
[1766311105994,0.03327027,3006.7,3005.1,3.1408]
[1766311106205,3.32601609,3006.6,3005.1,3.1408]
[1766311106404,0.03327027,3006.5,3005.1,3.1408]
[1766311106707,0.429,3006.4,3005.2,3.78765664]
[1766311107175,0.429,3006.4,3005.2,3.1408]
[1766311107572,10.80432527,3006.3,3004.5,2.7786]
[1766311107769,24.45002,3006.3,3004.5,2.7786]
[1766311108306,24.45002,3006.3,3005.0,0.001]
[1766311108307,6.6529173,3006.2,3005.0,0.001]
[1766311108506,3.143564,3006.1,3005.0,0.001]
[1766311108703,0.03327027,3006.1,3005.0,0.001]
[1766311109314,1.03322193,3006.1,3004.4,0.3622]
[1766311109682,0.429,3006.2,3004.9,2.7786]
[1766311109876,0.429,3006.2,3005.3,2.7786]
[1766311110189,0.429,3006.2,3005.3,3.1408]
[1766311111382,0.429,3006.2,3005.3,3.78764391]
[1766311111719,0.002,3006.4,3005.5,0.3622]
[1766311112014,0.002,3006.4,3004.5,3.32825963]
[1766311112015,0.002,3006.4,3004.7,3.1408]
[1766311112224,0.01001067,3006.1,3004.7,3.1408]
[1766311112576,0.01001067,3005.9,3004.7,3.1408]
[1766311112814,0.429,3005.8,3004.7,3.1408]
[1766311113017,0.429,3005.8,3004.8,0.31408]
[1766311113592,0.429,3005.8,3004.5,3.1408]
[1766311114022,0.429,3005.8,3004.6,3.1408]
[1766311114582,3.75590795,3005.8,3004.6,3.1408]
[1766311114980,0.429,3005.8,3004.6,3.1408]
[1766311115488,0.429,3005.8,3004.7,3.2347]
[1766311115698,0.429,3005.8,3004.8,0.65629106]
[1766311115902,0.429,3005.8,3004.7,3.2347]
[1766311116094,0.01001067,3005.9,3004.7,3.2347]
[1766311116274,0.429,3005.8,3004.7,3.2347]
[1766311116677,0.01001067,3005.9,3004.7,3.2347]
[1766311116877,0.429,3005.8,3004.7,3.2347]
[1766311117078,0.429,3005.8,3004.7,3.89110079]
[1766311117312,0.01001067,3005.9,3004.7,3.89110079]
[1766311117509,0.429,3005.7,3004.7,3.89110079]
[1766311117809,0.429,3005.7,3004.7,3.2347]
[1766311118991,0.429,3005.6,3004.7,3.2347]
[1766311120507,0.01001067,3005.9,3004.7,3.2347]
[1766311120690,0.429,3005.6,3004.7,3.2347]
[1766311123111,0.99994167,3006.0,3004.9,2.8602]
[1766311123314,0.99994167,3006.0,3004.7,3.36134288]
[1766311123315,0.429,3005.9,3005.1,3.2347]
[1766311123520,0.429,3005.9,3004.6,3.2347]
[1766311123686,0.429,3005.9,3004.7,3.2347]
[1766311123885,0.01001067,3005.8,3004.7,3.2347]
[1766311124116,0.01001067,3005.8,3004.8,0.65629209]
[1766311124815,0.429,3005.7,3004.8,3.89099209]
[1766311125208,0.429,3005.7,3004.8,3.2347]
[1766311126222,0.429,3005.7,3004.5,3.6687]
[1766311126391,0.01001067,3005.6,3004.5,3.6687]
[1766311126792,0.01001067,3005.6,3004.5,0.434]
[1766311126992,0.01001067,3005.6,3004.6,3.2347]
[1766311127517,0.01001067,3005.6,3004.6,3.93441513]
[1766311127729,0.01001067,3006.0,3004.6,3.93441513]
[1766311127730,0.002,3006.4,3004.9,0.2]
[1766311128021,0.002,3007.6,3004.9,0.2]
[1766311128022,0.429,3007.3,3005.7,3.2347]
[1766311128220,0.60283669,3007.3,3005.9,2.8602]
[1766311128395,0.01001067,3007.2,3006.0,2.8602]
[1766311129376,0.01001067,3007.0,3006.0,2.8602]
[1766311129689,0.01001067,3007.0,3005.8,0.433]
[1766311129886,0.01001067,3007.0,3005.8,6.62010059]
[1766311130122,0.01001067,3007.0,3005.9,0.3745]
[1766311130302,0.01001067,3007.0,3005.9,3.2347]
[1766311130515,0.01001067,3007.0,3006.0,0.69945993]
[1766311131838,0.01001067,3007.0,3005.9,3.2347]
[1766311133330,0.01201067,3007.0,3005.9,3.2347]
[1766311133630,0.01201067,3007.0,3006.0,3.2347]
[1766311133796,0.01201067,3007.0,3006.1,3.2347]
[1766311135423,0.002,3007.0,3005.8,0.3745]
[1766311135699,0.002,3007.0,3006.2,0.3745]
[1766311135909,0.002,3007.0,3006.2,2.8602]
[1766311136228,0.002,3007.0,3006.2,3.85338714]
[1766311136813,0.002,3007.0,3006.3,2.8602]
[1766311137343,0.002,3007.0,3006.3,3.2347]
[1766311138161,0.97948062,3006.2,3005.5,3.2347]
[1766311138349,0.428,3006.1,3005.5,3.2347]
[1766311140111,0.01001067,3006.5,3005.5,3.2347]
[1766311140335,0.428,3006.4,3005.5,3.2347]
[1766311141440,0.01001067,3005.9,3004.8,3.2347]
[1766311141656,0.01001067,3005.9,3004.5,2.8612]
[1766311141813,0.01001067,3005.9,3004.6,0.66062]
[1766311142019,0.01001067,3005.7,3004.6,3.52082]
[1766311142252,0.01001067,3005.5,3004.6,3.52082]
[1766311143148,0.01001067,3005.5,3004.6,3.51582]
[1766311144752,0.01001067,3005.5,3004.6,3.14632]
[1766311146261,0.01001067,3005.5,3004.6,3.50092]
[1766311148454,3.33724452,3005.5,3004.6,3.43842]
[1766311148655,0.01001067,3005.2,3004.5,0.001]
[1766311148855,0.01001067,3005.0,3004.1,2.7977]
[1766311149241,0.01001067,3005.0,3004.1,3.1523]
[1766311149558,0.01001067,3005.0,3004.2,3.1523]
[1766311149773,0.428,3004.9,3004.2,3.1523]
[1766311150466,0.428,3004.9,3004.1,0.3546]
[1766311150760,0.428,3004.9,3004.1,3.1523]
[1766311151140,0.01001067,3005.2,3004.1,3.1523]
[1766311151327,0.01001067,3005.0,3004.1,3.1523]
[1766311151838,0.01001067,3004.8,3003.8,0.001]
[1766311153190,0.01001067,3004.8,3003.8,2.7987]
[1766311153378,0.428,3004.7,3003.9,3.1523]
[1766311158180,0.428,3004.6,3004.1,2.7977]
[1766311158377,0.428,3004.6,3004.2,0.3546]
[1766311159651,6.48001067,3005.4,3004.3,2.7977]
[1766311159853,0.428,3005.3,3004.4,3.1523]
[1766311160488,0.428,3005.3,3004.7,2.7977]
[1766311160664,0.428,3005.3,3004.8,0.27977]
[1766311160858,0.428,3005.3,3004.5,3.32833765]
[1766311161184,0.428,3005.3,3004.6,6.12592954]
[1766311161689,0.428,3005.3,3004.6,6.48052954]
[1766311162254,0.428,3005.3,3004.8,3.1523]
[1766311163154,0.428,3005.3,3004.5,3.1523]
[1766311164399,0.428,3005.3,3004.6,3.1523]
[1766311168099,0.428,3005.2,3004.4,2.822]
[1766311168396,0.428,3005.2,3004.5,3.1699]
[1766311169065,0.002,3005.5,3004.7,2.822]
[1766311169401,0.428,3005.4,3004.9,3.1699]
[1766311169767,0.002,3005.3,3004.9,3.1699]
[1766311170101,0.428,3005.2,3004.9,3.1699]
[1766311172196,0.002,3005.3,3004.9,3.1699]
[1766311172396,0.428,3005.2,3004.9,3.1699]
[1766311177707,0.002,3005.3,3004.9,2.822]
[1766311178005,0.002,3005.2,3005.0,3.0194]
[1766311178218,0.43,3005.3,3005.0,3.0194]
[1766311178516,0.002,3005.3,3005.0,3.0194]
[1766311180911,0.002,3005.5,3005.0,2.6793]
[1766311181296,0.428,3005.4,3005.0,2.6793]
[1766311182181,0.002,3005.5,3005.1,0.3401]
[1766311182813,0.002,3005.5,3005.0,2.6793]
[1766311183688,0.3749,3005.5,3004.9,0.3401]
[1766311184396,0.3749,3005.5,3004.9,3.0194]
[1766311184596,0.3749,3005.5,3004.9,3.32134]
[1766311187024,0.3749,3005.5,3004.9,3.32234]
[1766311190005,3.32635665,3006.3,3004.9,3.32234]
[1766311190006,0.002,3006.8,3005.6,0.3401]
[1766311190204,0.428,3006.7,3005.8,3.0194]
[1766311192040,0.0621,3006.6,3005.8,3.0194]
[1766311193137,0.0641,3006.5,3005.8,3.0194]
[1766311193601,0.0621,3006.3,3005.3,2.6793]
[1766311193802,0.428,3006.2,3005.6,3.0194]
[1766311194132,0.428,3006.2,3005.0,0.433]
[1766311194133,0.38380202,3006.5,3005.7,0.3401]
[1766311194454,0.43,3006.5,3006.0,2.6793]
[1766311194739,0.002,3006.5,3006.0,3.0194]
[1766311195103,0.002,3006.5,3006.2,2.6793]
[1766311195346,0.002,3006.8,3006.4,2.6793]
[1766311195907,0.002,3006.8,3005.3,0.03327454]
[1766311195908,0.01001067,3006.5,3005.3,0.03327454]
[1766311196133,0.07411067,3006.0,3005.4,0.27125745]
[1766311196313,0.01001067,3006.0,3005.4,3.0194]
[1766311196533,0.07411067,3006.2,3005.5,3.0194]
[1766311197244,0.01001067,3006.0,3005.5,2.6793]
[1766311197435,0.01001067,3006.0,3005.7,2.6793]
[1766311197745,0.01001067,3006.0,3005.3,0.3401]
[1766311197950,0.01001067,3006.0,3005.3,3.0194]
[1766311198125,0.01001067,3006.0,3005.4,0.3401]
[1766311198316,0.0641,3006.1,3005.4,3.0194]
[1766311199035,0.002,3007.0,3005.9,2.6793]
[1766311199233,0.002,3007.0,3006.6,3.0194]
[1766311199412,0.01001067,3007.4,3006.9,0.3401]
[1766311199753,0.01001067,3007.4,3007.0,2.6793]
[1766311200542,0.01201067,3007.6,3007.0,2.6793]
[1766311200770,0.01001067,3007.4,3007.1,0.3401]
[1766311200946,0.002,3007.6,3007.0,2.6793]
[1766311201125,0.002,3007.6,3007.0,3.0194]
[1766311201515,0.002,3007.6,3007.2,2.6793]
[1766311201729,0.002,3007.6,3007.2,3.0194]
[1766311202222,0.01001067,3008.1,3007.7,0.3401]
[1766311202423,0.0682,3008.6,3007.7,3.0194]
[1766311203145,0.002,3008.3,3008.0,3.0194]
[1766311204448,0.002,3008.3,3007.2,3.0194]
[1766311204449,0.01001067,3008.0,3007.2,3.0194]
[1766311204668,0.01001067,3008.2,3007.4,3.0194]
[1766311205056,0.01001067,3008.0,3007.4,3.0194]
[1766311205362,0.002,3007.6,3007.4,3.0194]
[1766311206529,0.01001067,3008.2,3007.5,3.2099]
[1766311206734,0.01001067,3008.2,3007.7,2.867]
[1766311207048,0.002,3008.3,3007.8,3.2099]
[1766311207635,0.002,3008.3,3008.0,2.867]
[1766311207834,0.002,3008.3,3008.0,3.2099]
[1766311208364,0.002,3008.3,3007.6,3.6429]
[1766311208365,0.01001067,3008.2,3007.6,3.6429]
[1766311208563,0.01001067,3008.2,3007.1,3.32541388]
[1766311208564,0.01001067,3008.0,3007.1,3.32541388]
[1766311208770,0.01001067,3008.0,3007.2,0.7759]
[1766311208970,0.0682,3008.1,3007.3,3.32520733]
[1766311209270,0.01001067,3008.2,3007.4,2.867]
[1766311210157,0.01001067,3008.2,3007.5,0.3429]
[1766311210531,0.07821067,3008.2,3007.4,2.867]
[1766311210764,0.41963728,3008.2,3007.4,2.867]
[1766311210948,0.07821067,3008.2,3007.4,2.867]
[1766311211344,0.01001067,3008.2,3007.6,2.867]
[1766311211671,0.002,3008.3,3007.8,3.2099]
[1766311212538,0.002,3008.3,3007.9,0.3429]
[1766311212758,0.002,3008.3,3008.0,3.2099]
[1766311213359,0.01201067,3008.9,3008.2,3.2099]
[1766311213571,0.002,3008.9,3008.2,2.867]
[1766311213750,0.002,3008.9,3008.3,3.2099]
[1766311214068,0.002,3008.9,3008.4,3.2099]
[1766311214270,0.002,3008.9,3008.1,0.433]
[1766311214474,0.01201067,3008.9,3008.0,3.2099]
[1766311214668,0.35356197,3008.9,3008.1,3.3]
[1766311215080,0.35356197,3008.9,3008.2,0.433]
[1766311215284,0.3435513,3008.9,3008.4,2.867]
[1766311215436,0.002,3008.9,3008.4,2.867]
[1766311216067,0.002,3008.9,3008.6,2.867]
[1766311217346,0.002,3008.9,3008.3,2.867]
[1766311217649,0.002,3008.9,3008.3,0.7759]
[1766311217877,0.002,3008.9,3008.4,2.867]
[1766311218082,0.002,3008.9,3008.5,3.2099]
[1766311218580,0.002,3010.7,3009.9,2.867]
[1766311218780,0.002,3010.7,3009.9,3.2099]
[1766311218964,0.3596,3010.7,3009.9,3.2099]
[1766311219366,0.3596,3010.7,3009.8,0.433]
[1766311219780,0.3576,3010.5,3009.8,0.433]
[1766311219984,0.3576,3010.3,3008.1,0.01001067]
[1766311220203,0.3576,3010.3,3009.3,2.867]
[1766311220367,0.3576,3010.3,3009.4,2.867]
[1766311220561,0.3576,3010.3,3009.4,3.2099]
[1766311221566,3.3220384,3010.2,3009.4,3.2099]
[1766311221926,0.33220384,3010.1,3009.4,3.2099]
[1766311222982,0.3576,3010.2,3009.4,3.2099]
[1766311224169,0.3576,3010.1,3009.4,3.2099]
[1766311227194,0.3714,3009.8,3008.8,3.0649]
[1766311227398,0.3714,3009.8,3008.9,3.147]
[1766311227581,0.3714,3009.6,3008.9,0.433]
[1766311227779,0.3714,3009.4,3008.9,0.433]
[1766311227963,0.38141067,3009.7,3008.9,0.433]
[1766311228162,0.38141067,3009.7,3008.8,2.714]
[1766311228399,0.3714,3009.5,3008.8,3.147]
[1766311229196,0.37039433,3009.6,3009.0,0.3509]
[1766311229405,0.3714,3009.8,3009.1,3.0649]
[1766311229564,0.01001067,3009.9,3009.1,2.714]
[1766311229770,0.3714,3010.6,3009.5,3.0649]
[1766311230001,0.3714,3010.4,3009.6,0.433]
[1766311230199,0.04328094,3010.5,3008.7,3.32367336]
[1766311230200,0.3714,3010.1,3009.2,2.714]
[1766311230373,0.74094395,3010.0,3009.3,0.433]
[1766311230574,0.3714,3009.9,3008.5,0.3509]
[1766311230881,0.38141067,3009.9,3009.0,2.714]
[1766311231101,0.38141067,3009.9,3009.0,3.147]
[1766311231776,0.3714,3009.9,3009.0,3.147]
[1766311231982,0.3714,3009.9,3009.1,3.0649]
[1766311233566,0.36936677,3009.8,3009.1,3.0649]
[1766311233968,0.3714,3009.9,3009.1,3.0649]
[1766311234696,0.3714,3009.8,3009.1,3.147]
[1766311235108,0.38141067,3009.8,3008.9,0.001]
[1766311235289,0.38141067,3009.8,3008.9,0.434]
[1766311236310,0.3438,3009.3,3007.9,3.32450404]
[1766311236605,0.3438,3009.6,3008.7,2.9137]
[1766311236810,0.3438,3009.6,3008.9,2.9137]
[1766311237110,0.3438,3009.6,3008.9,3.2597]
[1766311237611,0.3438,3009.6,3008.5,0.433]
[1766311237612,0.43601067,3009.9,3009.1,3.2597]
[1766311237775,0.43601067,3009.9,3009.1,2.9137]
[1766311237977,0.3758345,3009.8,3009.2,0.346]
[1766311238899,4.1022168,3009.9,3009.2,0.346]
[1766311239572,0.002,3010.2,3009.5,2.9137]
[1766311239771,0.002,3010.2,3009.7,3.2597]
[1766311240011,0.002,3010.2,3009.7,2.9137]
[1766311240172,0.002,3010.2,3009.9,2.9137]
[1766311240374,0.002,3010.2,3009.9,3.2597]
[1766311240570,0.002,3010.2,3008.4,3.32397099]
[1766311240805,0.002,3010.2,3009.4,0.346]
[1766311241108,0.3458,3010.2,3009.5,0.433]
[1766311241306,0.01001067,3010.1,3009.5,0.433]
[1766311241611,0.002,3010.2,3009.7,2.9137]
[1766311242387,0.002,3010.2,3009.9,2.9137]
[1766311242593,0.002,3010.2,3009.9,3.2597]
[1766311242793,0.3458,3010.2,3009.3,3.2597]
[1766311243091,0.002,3010.2,3009.5,3.2597]
[1766311243295,0.002,3010.2,3009.7,3.2597]
[1766311243834,0.002,3010.2,3009.9,2.9137]
[1766311245127,0.002,3010.2,3009.6,0.346]
[1766311245426,0.002,3010.2,3009.6,3.2597]
[1766311245828,0.002,3010.2,3009.7,3.2597]
[1766311249031,0.01001067,3010.5,3009.7,3.32259029]
[1766311249241,0.002,3010.7,3010.3,3.2597]
[1766311249532,0.002,3010.7,3010.3,2.9137]
[1766311250092,0.002,3010.7,3010.3,3.2597]
[1766311252531,0.002,3011.2,3010.5,2.9137]
[1766311253021,0.3458,3011.2,3010.5,2.9137]
[1766311253227,0.002,3011.2,3010.5,2.9137]
[1766311253429,0.3458,3011.2,3010.5,2.9137]
[1766311257513,0.3458,3011.2,3010.5,3.2597]
[1766311260635,0.3438,3011.1,3010.1,3.2597]
[1766311260888,0.3438,3010.9,3010.4,0.432]
[1766311261131,0.3438,3010.9,3010.1,3.2597]
[1766311261431,0.3438,3010.9,3010.3,0.432]
[1766311261635,0.3438,3010.9,3010.3,3.3457]
[1766311262733,0.3438,3010.9,3010.3,3.6927]
[1766311263138,0.3458,3010.9,3010.3,0.001]
[1766311263341,0.3458,3010.9,3010.4,0.432]
[1766311263535,0.3438,3010.8,3010.4,0.432]
[1766311263943,0.3438,3010.8,3010.3,0.001]
[1766311264233,0.3438,3010.8,3010.1,0.432]
[1766311264438,0.3438,3010.8,3010.0,0.432]
[1766311264825,0.3438,3010.8,3010.1,2.8302]
[1766311265252,0.40437862,3010.7,3010.1,3.184]
[1766311265555,0.74587862,3010.7,3010.1,3.184]
[1766311265719,0.40437862,3010.7,3010.1,2.8302]
[1766311265914,0.3415,3010.6,3010.0,0.432]
[1766311266514,0.3415,3010.6,3009.7,2.8302]
[1766311266929,0.3415,3010.6,3009.8,0.432]
[1766311267314,0.3415,3010.6,3009.8,3.2622]
[1766311267520,0.74587862,3010.7,3009.9,2.8302]
[1766311267838,0.3435,3010.9,3010.1,3.184]
[1766311268223,0.3415,3010.8,3010.1,3.184]
[1766311268745,0.3415,3010.8,3010.0,0.432]
[1766311269128,3.32148669,3010.7,3010.0,0.432]
[1766311269355,3.32148669,3010.7,3009.2,3.32311331]
[1766311269356,0.3415,3010.5,3009.4,2.8302]
[1766311269553,0.3415,3010.4,3009.4,2.8302]
[1766311269720,0.3415,3010.4,3009.4,3.616]
[1766311270052,0.3415,3010.4,3009.5,2.8302]
[1766311271923,3.32192804,3010.3,3010.0,0.001]
[1766311272255,0.3415,3010.2,3010.0,0.001]
[1766311272452,0.3663428,3010.1,3010.0,0.001]
[1766311272626,0.7078428,3010.1,3009.5,2.8302]
[1766311273453,0.3663428,3010.1,3009.4,0.432]
[1766311273656,0.3415,3010.0,3009.4,0.432]
[1766311275960,0.3415,3010.0,3009.2,2.8302]
[1766311275961,0.3415,3010.0,3009.3,0.432]
[1766311276139,0.3415,3009.8,3009.3,0.432]
[1766311276865,0.3415,3009.8,3009.1,0.001]
[1766311277156,0.3415,3009.8,3009.2,0.432]
[1766311277360,0.3415,3009.8,3009.1,3.2632]
[1766311278734,0.3415,3009.8,3009.1,2.8312]
[1766311279062,0.3587,3009.7,3009.1,0.001]
[1766311281643,0.3587,3009.7,3009.0,0.001]
[1766311283137,0.79229867,3010.5,3009.6,0.3567]
[1766311283440,0.426,3010.5,3009.8,3.2028]
[1766311283841,0.7847,3010.5,3009.8,3.2028]
[1766311284573,0.3587,3010.5,3009.8,3.2028]
[1766311288242,0.3587,3010.2,3009.4,0.433]
[1766311289052,0.3587,3010.2,3009.3,0.433]
[1766311289274,0.3587,3010.0,3009.3,0.433]
[1766311289472,0.3587,3010.0,3009.1,3.2791]
[1766311289673,0.3587,3010.0,3009.1,2.8461]
[1766311290582,0.3587,3009.8,3009.1,2.8461]
[1766311291961,0.3587,3009.8,3009.0,0.001]
[1766311293380,0.3587,3009.8,3009.0,2.7907]
[1766311293747,0.3587,3009.8,3009.0,3.1416]
[1766311294382,0.3587,3009.8,3009.0,2.7907]
[1766311294574,0.3499,3009.6,3009.0,2.7907]
[1766311295490,0.3499,3009.6,3009.0,0.001]
[1766311295916,0.3499,3009.6,3008.6,3.2857]
[1766311296594,0.3496,3009.5,3009.0,0.001]
[1766311296960,0.3496,3009.5,3008.6,3.2857]
[1766311297376,0.3496,3009.3,3008.6,3.2857]
[1766311298212,0.3496,3009.3,3008.4,0.3537]
[1766311298494,0.3496,3009.3,3008.6,0.3537]
[1766311298700,0.7932312,3009.4,3008.5,0.433]
[1766311298701,0.426,3009.4,3008.8,3.2857]
[1766311298902,0.426,3009.4,3008.9,0.03323473]
[1766311299197,0.7756,3009.5,3008.9,0.03323473]
[1766311299396,0.3496,3009.4,3008.9,0.03323473]
[1766311299963,0.3496,3009.4,3008.9,2.96523473]
[1766311302015,0.3496,3009.4,3008.9,2.932]
[1766311305505,0.3496,3009.4,3008.9,2.933]
[1766311306822,0.002,3009.6,3009.0,0.3537]
[1766311307108,0.002,3009.7,3009.4,3.2857]
[1766311307307,0.3496,3010.4,3009.6,0.3537]
[1766311307473,0.3496,3010.4,3009.8,3.2857]
[1766311310008,0.002,3010.5,3009.8,3.2857]
[1766311310312,0.3516,3010.5,3009.8,3.2857]
[1766311310510,0.3496,3010.4,3009.7,0.433]
[1766311310713,0.35961067,3010.4,3009.4,0.433]
[1766311311012,0.35961067,3010.4,3009.6,2.932]
[1766311311214,0.002,3010.5,3009.9,2.932]
[1766311311388,0.002,3010.5,3009.6,0.466227]
[1766311311389,0.002,3010.5,3010.1,3.2857]
[1766311311589,0.002,3010.8,3010.3,2.932]
[1766311312384,0.3516,3010.8,3010.2,0.3537]
[1766311312722,0.3516,3010.8,3010.0,0.433]
[1766311313297,0.3516,3010.8,3010.0,3.365]
[1766311313497,0.3516,3010.8,3010.0,3.7187]